Cogmind - Beta 16 @@@ ROGUE MODE // 2025.10.29 @ 22:40:38 Player: Petvaria Result: Destroyed by S-43 Plague with Heavy Machine Gun Performance ------------- Evolutions (8) 4000 Regions Visited (16) 3200 Robots Destroyed (77) 385 Value Destroyed (2174) 2174 Prototype IDs (46) 920 Alien Tech Used (2) 400 Bonus (6073) 6073 TOTAL SCORE: 17152 Bonus ------- High Alert Combat Kills 177 Follower Combat Kills 1392 Registered with UFD 300 Met Optimus in HQ 500 Met Zhirov 300 MAIN.C Attacked Warlord 500 Used Core Reset Matrix 3000 Friendly Fire -96 Cogmind --------- Core Integrity 0/1450 Matter 275/300 Energy 98/100 System Corruption 5% Temperature Cool (6) Movement Flying (37) Location -2/Research Parts ------- > --- POWER (2) -------- (None) > --- PROPULSION (7) --- Q-thruster (fused) Impulse Thruster Array Impulse Thruster Array > --- UTILITY (12) ----- Advanced Signal Interpreter Advanced Signal Interpreter Transport Network Coupler Improved Melee Analysis Suite > --- WEAPON (2) ------- (None) > --- INVENTORY (5) ---- Graphene Brace EM Shield Advanced Force Field Advanced Point Defense System Transdimensional Reconstructor Peak State ------------ > --- POWER ------------ Light Fission Core Fusion Reactor > --- PROPULSION ------- Cooled Nuclear Pulse Thruster Cooled Nuclear Pulse Thruster Cooled Nuclear Pulse Thruster Field Propulsion Array Cooled Impulse Thruster Cooled Impulse Thruster > --- UTILITY ---------- Medium Storage Unit Advanced Sensor Array Advanced Signal Interpreter Transport Network Coupler Improved Melee Analysis Suite Core Analyzer Improved Armor Integrity Analyzer Nanoactuators Improved Weapon Shielding Advanced Hacking Suite System Mapper > --- WEAPON ----------- Companion Sword > --- INVENTORY -------- Makeshift Flight Unit Field Propulsion Array Advanced Sensor Array Advanced Signal Interpreter Graphene Brace EM Shield Advanced Force Field Advanced Point Defense System Transdimensional Reconstructor [Rating: 130] Favorites ----------- Power Ion Engine Engine Ion Engine Power Core Light Fission Core Reactor Fusion Reactor Propulsion Light Treads Treads Light Treads Wheel Compact Wheel Flight Unit Cooled Impulse Thruster Utility Improved Melee Analysis Suite Device Improved Sensor Array Storage Medium Storage Unit Processor Improved Melee Analysis Suite Hackware Advanced Hacking Suite Protection Scrap Shield Weapon Spread Laser Energy Gun Spread Laser Energy Cannon Subdweller Beam Cannon Ballistic Gun Subdweller Machine Gun Slashing Weapon Companion Sword Special Melee Weapon Improved Datajack Build | -11 -10 -10 -7 -5 -5 -5 -5 -4 -4 -4 -4 -4 -3 -3 -3 -2 ------- Run | Yrd Mat Sub Scr Fac Upp Upp War Pro Fac Upp Upp Zhi Pro Res Qua Res Slots Evolved 16 | . . . . 10 . . . . 2 . . . . 2 . 2 Power 1 | . . . . . . . . . 1 . . . . . . . Propulsion 5 | . . . . 3 . . . . 1 . . . . 1 . . Utility 10 | . . . . 7 . . . . . . . . . 1 . 2 Weapon . | . . . . . . . . . . . . . . . . . Parts Attached 120 | 6 3 11 6 43 2 1 5 . 9 . 2 4 . 1 13 14 Power 8 | 1 . 1 1 3 . . . . 1 . . 1 . . . . Engine 2 | 1 . 1 . . . . . . . . . . . . . . Core 4 | . . . 1 3 . . . . . . . . . . . . Reactor 2 | . . . . . . . . . 1 . . 1 . . . . Propulsion 48 | 2 1 2 2 20 . . 1 . 4 . 2 3 . 1 1 9 Treads 6 | 2 . . 2 2 . . . . . . . . . . . . Leg . | . . . . . . . . . . . . . . . . . Wheel 8 | . 1 2 . 5 . . . . . . . . . . . . Hover . | . . . . . . . . . . . . . . . . . Flight 34 | . . . . 13 . . 1 . 4 . 2 3 . 1 1 9 Utility 50 | 1 2 2 1 19 1 1 3 . 4 . . . . . 12 4 Device 28 | . 1 . . 8 1 1 2 . 3 . . . . . 11 1 Storage 2 | 1 1 . . . . . . . . . . . . . . . Processor 11 | . . . . 7 . . . . 1 . . . . . . 3 Hackware 4 | . . . . 2 . . 1 . . . . . . . 1 . Protection 5 | . . 2 1 2 . . . . . . . . . . . . Artifact . | . . . . . . . . . . . . . . . . . Weapon 14 | 2 . 6 2 1 1 . 1 . . . . . . . . 1 Energy Gun 6 | 1 . 4 1 . . . . . . . . . . . . . Energy Cannon 3 | . . 1 . . . . 1 . . . . . . . . 1 Ballistic Gun 3 | 1 . 1 . 1 . . . . . . . . . . . . Ballistic Cannon . | . . . . . . . . . . . . . . . . . Launcher . | . . . . . . . . . . . . . . . . . Special Weapon . | . . . . . . . . . . . . . . . . . Impact Weapon . | . . . . . . . . . . . . . . . . . Slashing Weapon 1 | . . . 1 . . . . . . . . . . . . . Piercing Weapon . | . . . . . . . . . . . . . . . . . Special Melee Weapon 1 | . . . . . 1 . . . . . . . . . . . Unidentified Prototypes 11 | . . . 1 1 . . 5 . . . . 3 . . 1 . Parts Lost 54 | . . 3 . 16 . 1 . . 5 . . . . . 3 26 Power 5 | . . . . 2 . . . . 1 . . . . . . 2 Propulsion 26 | . . 1 . 7 . 1 . . 4 . . . . . 1 12 Utility 20 | . . 1 . 7 . . . . . . . . . . 2 10 Weapon 3 | . . 1 . . . . . . . . . . . . . 2 Highest Loss Streak 14 | . . 2 . 5 . 1 . . 2 . . . . . 3 14 To Critical Strikes . | . . . . . . . . . . . . . . . . . Average Backups 6 | 3 8 5 7 9 9 8 9 10 9 8 9 9 10 8 7 6 Power 1 | . 1 1 1 2 1 1 1 1 1 . . . . . . . Propulsion 1 | 1 2 . 1 1 5 4 3 4 1 . 1 2 2 2 2 . Utility 2 | . . . 2 3 2 2 2 3 4 6 6 5 6 4 4 4 Weapon 2 | . 5 3 2 1 1 1 1 2 2 2 2 1 1 . . . Tool/Special . | . . . . . . . . . . . . . . . . . Unused Backups 31 | . . 5 3 9 1 1 2 . 2 . . 1 . 3 1 3 Power 6 | . . . 1 3 1 . . . 1 . . . . . . . Propulsion 5 | . . . . 2 . 1 1 . . . . . . 1 . . Utility 9 | . . . 1 2 . . 1 . 1 . . . . 1 1 2 Weapon 9 | . . 5 1 1 . . . . . . . 1 . 1 . . Tool/Special 2 | . . . . 1 . . . . . . . . . . . 1 Average Slot Usage (%) 79 | . 98 77 82 78 90 94 93 94 88 78 88 91 94 93 94 53 Engine 8 | . 14 14 9 . . . . . 1 . . . . . . . Core 1 | . . . 4 4 5 5 5 5 . 5 5 5 5 4 4 1 Treads 11 | . 15 16 20 1 . . . . . . . . . . . . Wheel 3 | . 12 2 7 5 . . . . . . . . . . . . Flight 7 | . . . . 13 23 23 23 23 25 21 30 31 31 31 32 16 Device 3 | . 12 1 . 5 11 11 10 11 10 10 10 9 10 9 9 5 Storage 4 | . 14 1 11 5 5 5 5 5 5 5 5 5 5 4 4 1 Processor 7 | . . . . 25 23 23 23 23 21 21 21 21 21 19 18 17 Hackware 2 | . . . . 2 11 11 11 11 10 10 10 10 10 9 8 5 Protection 8 | . . 12 8 5 . . . . . . . . . 4 4 1 Energy Gun 8 | . 14 15 5 . . . . . . . . . . . . . Ballistic Gun 6 | . 14 10 5 . . . . . . . . . . . . . Slashing Weapon 2 | . . . 8 5 5 5 5 5 5 5 5 5 5 4 4 1 Peak Build Rating 130 | 6 8 12 24 83 80 82 90 89 106 88 97 115 115 123 128 130 Average Rating 36 | 5 7 10 16 60 78 79 82 89 101 88 96 107 115 121 122 86 On Entrance 71 | . 6 8 11 24 78 80 78 89 89 88 88 97 115 115 123 128 Avg Prop Armor Cover (%) 7 | . 13 6 13 21 . . . . . . 5 5 . 2 2 . Naked Turns . | . . . . . . . . . . . . . . . . . Heaviest Build 40 | 13 19 34 30 31 25 25 25 25 31 25 25 37 37 39 40 40 Greatest Support 62 | 40 40 40 56 62 25 25 28 28 44 31 33 39 39 39 47 50 Greatest Overweight (x) 2 | . 1 2 1 1 . . . . . . . . . . . . Average Overweight (x) . | . . . . . . . . . . . . . . . . . Largest Inventory Capacity 10 | 8 10 10 10 10 10 10 10 10 10 10 10 10 10 10 10 10 Average Capacity 7 | 7 9 5 9 10 10 10 10 10 10 10 10 10 10 10 10 6 Most Carried 10 | 5 9 10 10 10 10 10 10 10 10 8 10 10 10 10 10 10 Average Carried 7 | 3 8 5 8 9 9 9 9 10 9 8 9 9 10 9 9 6 Final Capacity 10 | 8 10 5 10 10 10 10 10 10 10 10 10 10 10 10 10 5 Final Carried 10 | 5 9 5 10 10 10 10 10 10 8 8 10 10 10 10 8 5 Class Distribution -------------------- 71% | Mutant 18% | Hacker-Sprinter Dominant Class ---------------- Mutant | -10/Materials Mutant | -10/Subcaves Mutant | -7/Scraptown Mutant | -5/Factory Hacker-Sprinter | -5/Upper Caves Hacker-Sprinter | -5/Upper Caves Hacker-Sprinter | -5/Warlord Hacker-Sprinter | -4/Proximity Caves Hacker-Sprinter | -4/Factory Hacker-Sprinter | -4/Upper Caves Hacker-Sprinter | -4/Upper Caves Hacker-Sprinter | -4/Zhirov Hacker-Sprinter | -3/Proximity Caves Hacker-Sprinter | -3/Research Hacker-Sprinter | -3/Quarantine Mutant | -2/Research Resources | -11 -10 -10 -7 -5 -5 -5 -5 -4 -4 -4 -4 -4 -3 -3 -3 -2 ----------- Run | Yrd Mat Sub Scr Fac Upp Upp War Pro Fac Upp Upp Zhi Pro Res Qua Res Matter Collected 2001 | 250 72 236 46 666 39 25 . 74 206 10 27 60 . . 170 120 Remotely 10 | . . . . . . . . . . . . . . . 10 . Salvage Created 3707 | 81 110 445 . 1857 . 76 . 21 421 . 42 264 20 27 243 100 Parts 171 | 11 3 30 . 80 . 5 . 2 12 . 3 1 5 5 10 4 Haulers Intercepted 8 | . . . . 5 . . . . 2 . . . . . . 1 Recyclers Shooed 2 | . 1 . . 1 . . . . . . . . . . . . Parts Field Recycled . | . . . . . . . . . . . . . . . . . Retrieved Matter . | . . . . . . . . . . . . . . . . . Parts Self-Destructed 28 | . . 19 . . . 4 . 2 . . . 1 2 . . . Prevented 3 | . . . . . . . . 3 . . . . . . . . Parts Restored . | . . . . . . . . . . . . . . . . . Kills | -11 -10 -10 -7 -5 -5 -5 -5 -4 -4 -4 -4 -4 -3 -3 -3 -2 ------- Run | Yrd Mat Sub Scr Fac Upp Upp War Pro Fac Upp Upp Zhi Pro Res Qua Res Combat Hostiles Destroyed 43 | . 3 18 . 14 . 3 . 2 1 . . . 2 . . . Melee 22 | . . . . 14 . 3 . 2 1 . . . 2 . . . Guns 18 | . 3 15 . . . . . . . . . . . . . . Cannons 2 | . . 2 . . . . . . . . . . . . . . Classes Destroyed 16 | 2 1 4 . 6 . . . 1 . . 1 . . 1 . . Worker 5 | 1 . . . 3 . . . . . . . . . . 1 . Builder 1 | . . . . 1 . . . . . . . . . . . . Tunneler 5 | 4 . . . 1 . . . . . . . . . . . . Hauler 8 | . . . . 5 . . . . 2 . . . . . . 1 Recycler 6 | . . . . 5 . . . . . . . . . . 1 . Operator 1 | . . . . . . . . . . . . . . 1 . . Drone 4 | . . . . . . . . 2 . . . . 2 . . . Watcher 8 | . . . . 2 . . . . 3 . . . . . 3 . Swarmer 18 | . . 6 . 9 . 3 . . . . . . . . . . Grunt 3 | . 3 . . . . . . . . . . . . . . . Sentry 1 | . . 1 . . . . . . . . . . . . . . Hunter 2 | . . . . 1 . . . . 1 . . . . . . . Programmer 4 | . . . . 4 . . . . . . . . . . . . Artisan 2 | . . 2 . . . . . . . . . . . . . . Subdweller 11 | . . 11 . . . . . . . . . . . . . . Samaritan 1 | . . . . . . . . . . . 1 . . . . . Best Kill Streak 6 | 2 2 4 . 6 . 3 . 2 2 . . . 2 1 2 1 Combat Bots Only 5 | . 2 4 . 5 . 3 . 2 1 . . . 2 . . . Max Kills in Single Turn 2 | 1 1 2 . 1 . 1 . 1 1 . 1 . 1 1 1 1 Gunslinging . | . . . . . . . . . . . . . . . . . Exploded . | . . . . . . . . . . . . . . . . . Melee 1 | . . . . 1 . 1 . 1 1 . . . 1 . . . Uniques/NPCs Destroyed . | . . . . . . . . . . . . . . . . . Combat | -11 -10 -10 -7 -5 -5 -5 -5 -4 -4 -4 -4 -4 -3 -3 -3 -2 -------- Run | Yrd Mat Sub Scr Fac Upp Upp War Pro Fac Upp Upp Zhi Pro Res Qua Res Hostile Shots Fired 679 | . 9 85 . 101 4 14 1 . 100 2 . . 4 1 . 358 Missed 357 | . 1 30 . 34 3 6 1 . 65 . . . 3 1 . 213 Hits 322 | . 8 55 . 67 1 8 . . 35 2 . . 1 . . 145 Melee 5 | . . . . 3 . . . . . . . . . . . 2 Projectile 317 | . 8 55 . 64 1 8 . . 35 2 . . 1 . . 143 AOE 20 | . . 15 . 1 . . . . 1 . . . . . . 3 Critical Strikes 18 | . 1 2 . 4 . 1 . . 3 . . . . . . 7 Damage Taken 7984 | . 108 1482 . 1419 20 118 . . 626 50 9 8 25 . 363 3756 Core 2272 | . . 101 . 459 . 14 . . 108 21 9 8 . . 88 1464 Absorbed by Shields . | . . . . . . . . . . . . . . . . . Redirected to Shielding 129 | . . . . 72 . . . . . . . . . . . 57 Regen/Repaired (Parts) 179 | . . . . 34 . . 75 . 8 . . . . . . 62 Core Remaining (%) 78 | 100 . . 59 . . . . 52 . . . . 87 . 93 . Volleys Fired 146 | 19 13 108 . . . . 1 . . . . . . . . 5 Largest 2 | 2 2 2 . . . . 1 . . . . . . . . 1 Hottest 125 | 70 70 125 . . . . 50 . . . . . . . . 120 Shots Fired 217 | 37 26 148 . . . . 1 . . . . . . . . 5 Gun 191 | 37 26 128 . . . . . . . . . . . . . . Cannon 26 | . . 20 . . . . 1 . . . . . . . . 5 Launcher . | . . . . . . . . . . . . . . . . . Special . | . . . . . . . . . . . . . . . . . Kinetic 94 | 19 13 62 . . . . . . . . . . . . . . Thermal 122 | 18 13 86 . . . . . . . . . . . . . 5 Explosive . | . . . . . . . . . . . . . . . . . Electromagnetic . | . . . . . . . . . . . . . . . . . Entropic 1 | . . . . . . . 1 . . . . . . . . . Robot Hit Streak 21 | 11 6 21 . . . . . . . . . . . . . . Robot Miss Streak 5 | 3 1 5 . . . . . . . . . . . . . . Penetration Max . | . . . . . . . . . . . . . . . . . Secondary Targets 3 | . . 3 . . . . . . . . . . . . . . Max Gunslinging Chain 1 | . . 1 . . . . . . . . . . . . . . Shots Hit Robots 230 | 25 17 80 . 56 . 7 1 2 17 . 1 9 2 1 8 4 Core Hits 118 | 8 7 50 . 30 . 3 . 1 7 . . 3 2 1 5 1 Critical Kills 2 | . . 2 . . . . . . . . . . . . . . Critical Parts Destroyed 1 | . . 1 . . . . . . . . . . . . . . Critical Strikes 10 | 1 2 5 . . . . . . 2 . . . . . . . Burn 4 | 1 2 1 . . . . . . . . . . . . . . Meltdown 1 | . . 1 . . . . . . . . . . . . . . Destroy 3 | . . 3 . . . . . . . . . . . . . . Melee Attacks 275 | . . . . 103 . 18 1 6 57 1 2 10 7 10 40 20 Impact . | . . . . . . . . . . . . . . . . . Slashing 272 | . . . . 103 . 18 . 6 55 1 2 10 7 10 40 20 Piercing . | . . . . . . . . . . . . . . . . . Sneak Attacks 33 | . . . . 18 . . 1 1 6 . 1 . . . 5 1 Combat Hostiles 1 | . . . . . . . . 1 . . . . . . . . Follow-up Attacks 1 | . . . . . . 1 . . . . . . . . . . Damage Inflicted 8977 | 292 171 1594 . 3385 . 344 . 124 992 . 111 900 116 72 643 233 Guns 1692 | 292 171 1229 . . . . . . . . . . . . . . Cannons 365 | . . 365 . . . . . . . . . . . . . . Explosions . | . . . . . . . . . . . . . . . . . Melee 6920 | . . . . 3385 . 344 . 124 992 . 111 900 116 72 643 233 Ramming . | . . . . . . . . . . . . . . . . . Kinetic 635 | 120 96 419 . . . . . . . . . . . . . . Thermal 1422 | 172 75 1175 . . . . . . . . . . . . . . Explosive . | . . . . . . . . . . . . . . . . . Electromagnetic . | . . . . . . . . . . . . . . . . . Impact . | . . . . . . . . . . . . . . . . . Slashing 6920 | . . . . 3385 . 344 . 124 992 . 111 900 116 72 643 233 Piercing . | . . . . . . . . . . . . . . . . . Highest Corruption 12 | . . . . 12 12 7 7 . 1 1 1 1 1 . 10 5 Average Corruption 6 | . . . . 10 8 7 7 . 1 1 1 1 1 . 10 3 Corruption Purged 5 | . . . . . 5 . . . . . . . . . . . Corruption Blocked . | . . . . . . . . . . . . . . . . . Effects 84 | . . . . 51 10 2 . . 1 1 2 . 3 . 3 11 Message Errors 20 | . . . . 12 2 . . . . 1 . . 1 . 1 3 Matter Fused 13 | . . . . 10 1 . . . . . 1 . . . . 1 Heat Flow Errors 15 | . . . . 11 2 . . . . . . . . . . 2 Energy Discharges 11 | . . . . 4 3 . . . . . 1 . 1 . . 2 Parts Rejected 1 | . . . . . . . . . . . . . . . . 1 Parts Fused 3 | . . . . 2 . . . . . . . . . . . 1 Data Loss (minor) 12 | . . . . 5 2 1 . . 1 . . . 1 . 2 . Data Loss (major) 7 | . . . . 5 . 1 . . . . . . . . . 1 Misdirections 2 | . . . . 2 . . . . . . . . . . . . Overload Shots . | . . . . . . . . . . . . . . . . . Overflow Damage 794 | . . 9 . 213 . 2 . 13 115 . 82 203 . . 111 46 Projectiles 9 | . . 9 . . . . . . . . . . . . . . Explosions . | . . . . . . . . . . . . . . . . . Melee 785 | . . . . 213 . 2 . 13 115 . 82 203 . . 111 46 Knockbacks . | . . . . . . . . . . . . . . . . . Impact . | . . . . . . . . . . . . . . . . . Kinetic . | . . . . . . . . . . . . . . . . . Secondary . | . . . . . . . . . . . . . . . . . Self-Inflicted Damage . | . . . . . . . . . . . . . . . . . Shots . | . . . . . . . . . . . . . . . . . Rammed . | . . . . . . . . . . . . . . . . . Targets Rammed . | . . . . . . . . . . . . . . . . . Kicked . | . . . . . . . . . . . . . . . . . Crushed . | . . . . . . . . . . . . . . . . . Highest Temperature 244 | 130 172 39 . 244 235 . 2 . 45 1 . 36 142 28 . 184 Average Temperature 46 | 43 58 16 . 84 90 . 1 . 16 1 . 13 36 7 . 86 Received Heat Transfer 423 | . 78 93 . 39 9 . . . 105 9 . . . . . 90 Siege Activations . | . . . . . . . . . . . . . . . . . Martial Activations . | . . . . . . . . . . . . . . . . . Shielding Activations . | . . . . . . . . . . . . . . . . . Robots Disrupted . | . . . . . . . . . . . . . . . . . Combat Hostiles . | . . . . . . . . . . . . . . . . . Robots Corrupted . | . . . . . . . . . . . . . . . . . Combat Hostiles . | . . . . . . . . . . . . . . . . . Parts Fried . | . . . . . . . . . . . . . . . . . Impact Corruptions . | . . . . . . . . . . . . . . . . . Robots Melted 1 | . . 1 . . . . . . . . . . . . . . Combat Hostiles 1 | . . 1 . . . . . . . . . . . . . . Parts Melted 7 | 1 2 3 . . . . . . 1 . . . . . . . Heat Transferred 2634 | 592 370 1672 . . . . . . . . . . . . . . Parts Sabotaged . | . . . . . . . . . . . . . . . . . Parts Stolen . | . . . . . . . . . . . . . . . . . Parts Stripped . | . . . . . . . . . . . . . . . . . Power Chain Reactions . | . . . . . . . . . . . . . . . . . Alert | -11 -10 -10 -7 -5 -5 -5 -5 -4 -4 -4 -4 -4 -3 -3 -3 -2 ------- Run | Yrd Mat Sub Scr Fac Upp Upp War Pro Fac Upp Upp Zhi Pro Res Qua Res Maximum Alert Level 5 | . . . . 5 . . . . 2 . . . . 3 2 2 Low Security (%) 46 | 100 100 . . 19 . . . . 64 . . . . . 73 50 Level 1 13 | . . . . 16 . . . . 28 . . . . . . 14 Level 2 23 | . . . . 33 . . . . 6 . . . . . 26 34 Level 3 10 | . . . . 15 . . . . . . . . . 100 . . Level 4 5 | . . . . 12 . . . . . . . . . . . . Level 5 . | . . . . 2 . . . . . . . . . . . . High Security . | . . . . . . . . . . . . . . . . . Max Security . | . . . . . . . . . . . . . . . . . Peak Influence 1704 | 10 70 . . 1704 . . . . 465 . . . . 799 477 599 Initial 763 | . . . . . . . . . 150 . . . . 763 432 . Average 353 | 1 16 . . 571 . . . . 166 . . . . 782 126 254 Influence Increases 7115 | 25 100 180 . 2749 30 85 . 10 1083 . 15 15 130 836 198 1659 Destroy 0b10 Robot/C 1560 | . 60 140 . 1140 . 60 . . 40 . . . . . . 120 Destroy 0b10 Robot/NC 240 | 25 . . . 115 . . . 10 30 . . 15 10 5 25 5 Destroy Leader 326 | . 10 10 . 248 . 10 . . 20 . . . . . 6 22 Allied During Kill 466 | . . . . 390 . . . . 17 . . . . . . 59 Successful Hack 152 | . . . . 25 . . . . 19 . . . . 3 89 16 Disable Machine 300 | . . . . 240 . . . . 30 . . . . . . 30 Destroy Structure 441 | . . . . 216 . . . . 102 . . . . 18 48 57 Advance Influence 900 | . . . . . . . . . 150 . . . . 750 . . Partial Spotted 285 | . . . . 60 . . . . 90 . . . . 15 30 90 Lose Combat Pursuer 2445 | . 30 30 . 315 30 15 . . 585 . 15 . 120 45 . 1260 Influence Decreases 6518 | 25 100 152 28 1150 772 234 708 10 644 213 204 52 110 87 967 1062 Entered New Map 2080 | . . . 28 . 592 164 708 . . 163 44 37 . 7 337 . Time Decay 2192 | 25 100 132 . 525 180 60 . 10 264 50 160 15 110 80 159 322 Search Patrol Dispatched 100 | . . . . . . . . . 100 . . . . . . . Lost Part 508 | . . 20 . 155 . 10 . . 50 . . . . . 13 260 Lost Ally 920 | . . . . 320 . . . . 110 . . . . . 10 480 Purge Threat 718 | . . . . 150 . . . . 120 . . . . . 448 . Squads Dispatched 38 | . . . . 17 . . . . 6 . . . . . 2 13 Investigation 9 | . . . . 5 . . . . 3 . . . . . . 1 Extermination 13 | . . . . 4 . . . . 2 . . . . . 1 6 Reinforcement 13 | . . . . 6 . . . . 1 . . . . . . 6 Assault . | . . . . . . . . . . . . . . . . . Garrison 3 | . . . . 2 . . . . . . . . . . 1 . Intercept . | . . . . . . . . . . . . . . . . . Searches Triggered 1 | . . . . . . . . . 1 . . . . . . . Construction Impeded 1 | . . . . 1 . . . . . . . . . . . . Haulers Reinforced 2 | . . . . 2 . . . . . . . . . . . . Active Scanning Responses . | . . . . . . . . . . . . . . . . . Cargo Convoy Interrupts . | . . . . . . . . . . . . . . . . . Stealth | -11 -10 -10 -7 -5 -5 -5 -5 -4 -4 -4 -4 -4 -3 -3 -3 -2 --------- Run | Yrd Mat Sub Scr Fac Upp Upp War Pro Fac Upp Upp Zhi Pro Res Qua Res Distress Signals 21 | . 2 . . 7 . . . . 1 . . . . . . 11 Communications Jammed . | . . . . . . . . . . . . . . . . . Distress Signals . | . . . . . . . . . . . . . . . . . Times Spotted 298 | . 6 23 . 65 3 4 2 1 52 4 1 . 7 3 3 124 Peak Tracking Total 27 | . 3 4 . 8 3 4 8 1 12 9 1 . 5 3 1 27 Tactical Retreats 47 | . 1 1 . 9 1 1 . . 12 . 1 . 2 1 . 18 Traps | -11 -10 -10 -7 -5 -5 -5 -5 -4 -4 -4 -4 -4 -3 -3 -3 -2 ------- Run | Yrd Mat Sub Scr Fac Upp Upp War Pro Fac Upp Upp Zhi Pro Res Qua Res Traps Triggered 7 | . . . . 4 . . . . 2 . . . . . . 1 Indirectly . | . . . . . . . . . . . . . . . . . Trap Hack Attempts . | . . . . . . . . . . . . . . . . . Triggered . | . . . . . . . . . . . . . . . . . Disarmed . | . . . . . . . . . . . . . . . . . Reprogrammed . | . . . . . . . . . . . . . . . . . Reused . | . . . . . . . . . . . . . . . . . Traps Extracted . | . . . . . . . . . . . . . . . . . Installed . | . . . . . . . . . . . . . . . . . Triggered . | . . . . . . . . . . . . . . . . . Machines | -11 -10 -10 -7 -5 -5 -5 -5 -4 -4 -4 -4 -4 -3 -3 -3 -2 ---------- Run | Yrd Mat Sub Scr Fac Upp Upp War Pro Fac Upp Upp Zhi Pro Res Qua Res Machines Disabled 22 | . . . . 16 . . 1 . 2 . . . . . 1 2 Max in Single Turn 1 | . . . . 1 . . 1 . 1 . . . . . 1 1 Garrison Access 7 | . . . . 4 . . . . 1 . . . . . 1 1 Machines Repaired . | . . . . . . . . . . . . . . . . . Machines Dismantled . | . . . . . . . . . . . . . . . . . Machines Sabotaged . | . . . . . . . . . . . . . . . . . Overloaded Fab Kills . | . . . . . . . . . . . . . . . . . Hacking | -11 -10 -10 -7 -5 -5 -5 -5 -4 -4 -4 -4 -4 -3 -3 -3 -2 --------- Run | Yrd Mat Sub Scr Fac Upp Upp War Pro Fac Upp Upp Zhi Pro Res Qua Res Machines Accessed 70 | . . 3 1 23 1 1 5 . 8 . 1 4 . 4 11 8 Terminals 33 | . . . . 11 . . . . 5 . . . . 2 10 5 Fabricators 4 | . . . . 3 . . . . . . . . . . . 1 Repair Stations 3 | . . . . 1 . . . . 1 . . . . . . 1 Recycling Units 5 | . . . . 4 . . . . 1 . . . . . . . Scanalyzers 2 | . . . . . . . . . . . . . . 2 . . Garrison Access 7 | . . . . 4 . . . . 1 . . . . . 1 1 Total Hacks 152 | . . 6 1 42 1 1 10 . 27 . 1 16 . 6 23 18 Successful 107 | . . 6 1 25 1 1 10 . 19 . 1 16 . 4 16 7 Failed 44 | . . . . 17 . . . . 8 . . . . 1 7 11 Catastrophic 6 | . . . . 3 . . . . . . . . . . 2 1 Database Lockouts 1 | . . . . . . . . . . . . . . 1 . . Manual 66 | . . . . 25 . . . . 17 . . . . 1 16 7 Terminals 83 | . . . . 23 . . . . 22 . . . . 3 22 13 Fabricators 5 | . . . . 4 . . . . . . . . . . . 1 Repair Stations 9 | . . . . 5 . . . . 2 . . . . . . 2 Recycling Units 5 | . . . . 4 . . . . 1 . . . . . . . Scanalyzers 3 | . . . . . . . . . . . . . . 3 . . Garrison Access 11 | . . . . 6 . . . . 2 . . . . . 1 2 Terminal Hacks 59 | . . 6 1 5 1 1 10 . 9 . 1 16 . 2 6 1 Record 16 | . . 4 . . . . 8 . . . . 4 . . . . Part Schematic 4 | . . . . . . . . . . . . 4 . . . . Robot Analysis 4 | . . . . . . . . . . . . 4 . . . . Prototype ID Bank 4 | . . . . . . . . . . . . 4 . . . . Open Door 8 | . . 1 1 . 1 1 2 . . . 1 . . 1 . . Level Access Points 1 | . . . . . . . . . . . . . . . 1 . Branch Access Points 2 | . . . . 1 . . . . 1 . . . . . . . Terminal Index 1 | . . . . . . . . . . . . . . . . 1 Recycling Unit Index 1 | . . . . . . . . . 1 . . . . . . . Unreport Threat 6 | . . . . 1 . . . . 2 . . . . . 3 . Locate Traps 2 | . . . . 1 . . . . 1 . . . . . . . Recall Investigation 2 | . . . . . . . . . 2 . . . . . . . Recall Extermination 2 | . . . . 1 . . . . . . . . . . 1 . Hauler Manifests 3 | . . . . . . . . . 1 . . . . 1 1 . Zone Layout 2 | . . . . 1 . . . . 1 . . . . . . . Proto ID Catalog 1 | . . 1 . . . . . . . . . . . . . . Fabricator Hacks 3 | . . . . 2 . . . . . . . . . . . 1 Network Status 2 | . . . . 1 . . . . . . . . . . . 1 Build 1 | . . . . 1 . . . . . . . . . . . . Repair Station Hacks 6 | . . . . 3 . . . . 1 . . . . . . 2 Scan Component 2 | . . . . 1 . . . . . . . . . . . 1 Repair 2 | . . . . 1 . . . . . . . . . . . 1 Refit 2 | . . . . 1 . . . . 1 . . . . . . . Recycling Unit Hacks . | . . . . . . . . . . . . . . . . . Scanalyzer 1 | . . . . . . . . . . . . . . 1 . . Retrieve Study 1 | . . . . . . . . . . . . . . 1 . . Garrison Access Hacks 7 | . . . . 4 . . . . 1 . . . . . 1 1 Seal Access 7 | . . . . 4 . . . . 1 . . . . . 1 1 Unauthorized Hacks 31 | . . . . 11 . . . . 8 . . . . 1 9 2 Terminals 24 | . . . . 6 . . . . 6 . . . . 1 9 2 Assimilate 5 | . . . . . . . . . 2 . . . . . 3 . Botnet 17 | . . . . 6 . . . . 2 . . . . 1 6 2 Operators 1 | . . . . . . . . . 1 . . . . . . . Skim 1 | . . . . . . . . . 1 . . . . . . . Fabricators . | . . . . . . . . . . . . . . . . . Repair Stations 2 | . . . . 1 . . . . 1 . . . . . . . Patch 2 | . . . . 1 . . . . 1 . . . . . . . Recycling Units 5 | . . . . 4 . . . . 1 . . . . . . . Scrapoids 5 | . . . . 4 . . . . 1 . . . . . . . Scanalyzers . | . . . . . . . . . . . . . . . . . Garrison Access . | . . . . . . . . . . . . . . . . . Data Cores Recovered 1 | . . . . . . . . . . . . . . 1 . . Used . | . . . . . . . . . . . . . . . . . Hacking Detections 36 | . . . . 14 . . . . 6 . . . . 2 7 7 Full Trace Events 1 | . . . . . . . . . . . . . . . . 1 Feedback Events . | . . . . . . . . . . . . . . . . . Feedback Blocked . | . . . . . . . . . . . . . . . . . Robot Schematics Acquired . | . . . . . . . . . . . . . . . . . Robots Built . | . . . . . . . . . . . . . . . . . Authchips . | . . . . . . . . . . . . . . . . . Time . | . . . . . . . . . . . . . . . . . Total Robot Build Rating . | . . . . . . . . . . . . . . . . . Part Schematics Acquired 4 | . . . . . . . . . . . . 4 . . . . Parts Built 2 | . . . . 2 . . . . . . . . . . . . Authchips . | . . . . . . . . . . . . . . . . . Time 128 | . . . . 128 . . . . . . . . . . . . Total Part Build Rating 16 | . . . . 16 . . . . . . . . . . . . Part Studies Acquired 1 | . . . . . . . . . . . . . . 1 . . Parts Repaired 2 | . . . . 1 . . . . . . . . . . . 1 Time 110 | . . . . 56 . . . . . . . . . . . 54 Parts Recycled . | . . . . . . . . . . . . . . . . . Recycled Matter . | . . . . . . . . . . . . . . . . . Retrieved Matter . | . . . . . . . . . . . . . . . . . Retrieved Components . | . . . . . . . . . . . . . . . . . Parts Scanalyzed . | . . . . . . . . . . . . . . . . . Part Schematics Acquired . | . . . . . . . . . . . . . . . . . Parts Damaged . | . . . . . . . . . . . . . . . . . Bothacking | -11 -10 -10 -7 -5 -5 -5 -5 -4 -4 -4 -4 -4 -3 -3 -3 -2 ------------ Run | Yrd Mat Sub Scr Fac Upp Upp War Pro Fac Upp Upp Zhi Pro Res Qua Res Used RIF Installer . | . . . . . . . . . . . . . . . . . Robots Hacked 3 | . . . . . . . 1 . 2 . . . . . . . Non-combat 2 | . . . . . . . . . 2 . . . . . . . Combat 1 | . . . . . . . 1 . . . . . . . . . Robot Hacks Applied 3 | . . . . . . . 1 . 2 . . . . . . . parse_system 1 | . . . . . . . 1 . . . . . . . . . find_chute 2 | . . . . . . . . . 2 . . . . . . . Relay Couplers Released . | . . . . . . . . . . . . . . . . . Fabnet Peak Effective % . | . . . . . . . . . . . . . . . . . Robots Rewired . | . . . . . . . . . . . . . . . . . Allies Hacked . | . . . . . . . . . . . . . . . . . Hacks Repelled . | . . . . . . . . . . . . . . . . . Allies | -11 -10 -10 -7 -5 -5 -5 -5 -4 -4 -4 -4 -4 -3 -3 -3 -2 -------- Run | Yrd Mat Sub Scr Fac Upp Upp War Pro Fac Upp Upp Zhi Pro Res Qua Res Total Allies 54 | . . . . 20 . . . . 6 . . . . . 2 26 Largest Group 9 | . . . . 9 . . . . 5 . . . . . 2 8 Highest-Rated Group 426 | . . . . 426 . . . . 238 . . . . . 71 113 Highest-Rated Ally 50 | . . . . 50 . . . . 50 . . . . . 45 15 Total Orders 2 | . . . . . . . . . . . . . . . 2 . STAY 2 | . . . . . . . . . . . . . . . 2 . Ally Attacks 373 | . . . . 276 . . . . 31 . . . . . . 66 Total Damage 8092 | . . . . 6312 . . . . 598 . . . . . . 1182 Kills 61 | . . . . 51 . . . . 2 . . . . . . 8 Allies Corrupted 5 | . . . . . . . . . . . . . . . . 5 Allies Melted 1 | . . . . 1 . . . . . . . . . . . . Intel | -11 -10 -10 -7 -5 -5 -5 -5 -4 -4 -4 -4 -4 -3 -3 -3 -2 ------- Run | Yrd Mat Sub Scr Fac Upp Upp War Pro Fac Upp Upp Zhi Pro Res Qua Res Active Infowar (turns) 6321 | . 332 855 . 1546 185 121 265 131 597 107 331 80 276 166 499 830 Sensors 4589 | . . . . 1546 185 121 265 131 597 107 331 80 276 166 499 285 Traps 1 | . . . . . . . . . . . . . . . 1 . Seismic 1187 | . 332 855 . . . . . . . . . . . . . . T.N.C. 664 | . . . . . . . . . . . . . . . . 664 Cloaking 1 | . . . . . . . 1 . . . . . . . . . Jamming 2 | . . . . . . . . . . . . . . . 2 . Robot Analysis Total 4 | . . . . . . . . . . . . 4 . . . . Derelict Logs Recovered 9 | . . 2 2 . 1 . . 2 . 1 1 . . . . . Drone Launches . | . . . . . . . . . . . . . . . . . Drone Recoveries . | . . . . . . . . . . . . . . . . . Exploration | -11 -10 -10 -7 -5 -5 -5 -5 -4 -4 -4 -4 -4 -3 -3 -3 -2 ------------- Run | Yrd Mat Sub Scr Fac Upp Upp War Pro Fac Upp Upp Zhi Pro Res Qua Res Turns Passed 16741 | 226 364 8159 2217 2009 361 121 265 131 599 107 331 80 276 166 499 830 Spaces Moved 19544 | 104 230 4096 1648 3058 1159 289 935 438 1451 388 599 196 826 530 1128 2469 Core 8 | 8 . . . . . . . . . . . . . . . . Treads 3818 | 96 11 3129 582 . . . . . . . . . . . . . Legs . | . . . . . . . . . . . . . . . . . Wheels 2864 | . 219 967 1066 612 . . . . . . . . . . . . Hover . | . . . . . . . . . . . . . . . . . Flight 12854 | . . . . 2446 1159 289 935 438 1451 388 599 196 826 530 1128 2469 Fastest Speed 16 | 50 95 95 115 23 23 23 23 24 16 20 27 20 20 20 20 20 Average Speed 72 | 151 98 188 130 45 23 23 23 24 23 26 27 22 20 20 20 29 Slowest Speed 240 | 160 160 240 160 124 23 24 24 24 28 27 28 27 20 20 20 45 Overloaded Moves 76 | . . . . . . . . . 46 5 . . . . . 25 Propulsion Burnouts . | . . . . . . . . . . . . . . . . . Robots Hopped 114 | . . . . 17 . . 2 . 27 2 3 . . . 12 51 Potential Cave-ins . | . . . . . . . . . . . . . . . . . Cave-ins Triggered 1 | . . . . . . . . . . . . . . . 1 . Exploration Rate (%) 57 | 6 30 96 91 68 57 40 84 50 44 63 66 60 73 16 83 58 Regions Visited 16 Branch Regions 11 Pre-discovered Areas 8 | . . 1 1 . 1 . 1 1 . . . 3 . . . . Known Exits Taken 12 | . . . . 1 1 1 1 1 1 1 1 1 1 1 1 . Unknown Exits Taken 4 | 1 1 1 1 . . . . . . . . . . . . . Scrap Searched 20 | . . 7 3 . 1 . . 3 . 2 2 . 2 . . . Spaces Dug 147 | . . 2 . 34 . 10 . 4 38 1 1 . 3 9 26 19 Terrain Destroyed 147 | . . 2 . 34 . 10 . 4 38 1 1 . 3 9 26 19 Melee 141 | . . . . 34 . 10 . 4 38 1 1 . 3 9 26 15 Projectile 6 | . . 2 . . . . . . . . . . . . . 4 AOE . | . . . . . . . . . . . . . . . . . Terrain Rammed . | . . . . . . . . . . . . . . . . . Walls Destroyed . | . . . . . . . . . . . . . . . . . Machines Disabled . | . . . . . . . . . . . . . . . . . Actions | -11 -10 -10 -7 -5 -5 -5 -5 -4 -4 -4 -4 -4 -3 -3 -3 -2 --------- Run | Yrd Mat Sub Scr Fac Upp Upp War Pro Fac Upp Upp Zhi Pro Res Qua Res Total 21422 | 139 344 4407 1712 3515 1252 316 981 454 1606 386 761 218 925 575 1332 2499 Wait 1148 | . 93 137 32 237 89 4 10 11 91 . 160 . 93 28 130 33 Move 19311 | 103 229 4095 1647 3027 1158 288 930 437 1398 383 592 195 825 529 1104 2371 Hop 103 | . . . . 13 . . 2 . 25 2 3 . . . 11 47 Pick Up 117 | 11 5 12 14 39 1 1 12 . 7 . 2 2 . 3 3 5 Fast Attach 77 | . . 4 1 21 1 2 2 . 8 . 2 6 . . 18 12 Attach 67 | 6 1 2 3 30 1 1 6 . 6 . . . . 2 5 4 Detach 11 | . . . 1 7 . 1 . . . . . . . . 2 . Swap 29 | . 2 7 4 6 1 . 4 . 4 . . . . . . 1 Drop 117 | . 1 19 10 32 1 2 13 . 10 . . 6 . 3 19 1 Fire 146 | 19 13 108 . . . . 1 . . . . . . . . 5 Melee 273 | . . . . 103 . 17 1 6 57 1 2 9 7 10 40 20 Ram . | . . . . . . . . . . . . . . . . . Kick . | . . . . . . . . . . . . . . . . . Crush . | . . . . . . . . . . . . . . . . . Escape Stasis . | . . . . . . . . . . . . . . . . . Rewire . | . . . . . . . . . . . . . . . . . Trap . | . . . . . . . . . . . . . . . . . Miscellaneous 23 | . . 23 . . . . . . . . . . . . . . Route ------- -11/Scrapyard -10/Materials (discovered 3 exits: [*Mat] / [*Min] / *Sub) -10/Subcaves (discovered 5 exits: [*Mat x2] / Rec / *Scr x2) -7/Scraptown (discovered 2 exits: *Fac x2) -5/Factory (discovered 5 exits: *Fac x3 / *Upp x2) -5/Upper Caves -5/Upper Caves (discovered 2 exits: *Fac / *War) -5/Warlord -4/Proximity Caves -4/Factory (discovered 3 exits: Res / *Upp x2) -4/Upper Caves -4/Upper Caves (discovered 2 exits: *Res / *Zhi) -4/Zhirov -3/Proximity Caves -3/Research (discovered 3 exits: *Res / Arm / *Qua) -3/Quarantine -2/Research (discovered 3 exits: *Acc x3) History --------- Turn | Location | Event 43 | -11/Scrapyard | Discovered new exit (range 16) 227 | -11/Scrapyard | Entered Materials 228 | -10/Materials | Met a group of wandering Federalists 288 | -10/Materials | Discovered new exit (range 10) 307 | -10/Materials | Discovered new exit (range 15) 314 | -10/Materials | Build established: Mutant 584 | -10/Materials | Discovered new exit (range 3) 591 | -10/Materials | Entered Subcaves 592 | -10/Subcaves | Continued accompanying wandering Federalists (3) 592 | -10/Subcaves | Approached by a straggling Scientist 761 | -10/Subcaves | Scientist uncovered a shortcut to Scraptown 1268 | -10/Subcaves | Disturbed a concealed Subdweller 1944 | -10/Subcaves | Learned Materials trap positions 1947 | -10/Subcaves | Shifting Twisted Machinery released Sub. Laser 1950 | -10/Subcaves | Shifting Twisted Machinery released Battle Rifle 2040 | -10/Subcaves | Visited Clippyterm 2045 | -10/Subcaves | Identified exit to Recycling 2063 | -10/Subcaves | Learned location of Zion (-6) 2063 | -10/Subcaves | Met a Zionite searching for "candidates" 2414 | -10/Subcaves | Ambushed by angry Subdweller bent on revenge 2859 | -10/Subcaves | Shifting Twisted Machinery released Mak. Flight Unit 3003 | -10/Subcaves | Shifting Twisted Machinery released Sub. Power Source 3011 | -10/Subcaves | A swath of the cavern ceiling suddenly collapsed 3048 | -10/Subcaves | Build established: Subdweller-Mutant 3528 | -10/Subcaves | Build established: Mutant 3990 | -10/Subcaves | Learned Materials terminal intel 4017 | -10/Subcaves | Visited 4L-MR0's lab 4568 | -10/Subcaves | Discovered new exit (range 9) 4814 | -10/Subcaves | Shifting Twisted Machinery released Sub. Power Source 4815 | -10/Subcaves | Shifting Twisted Machinery released Sub. Power Source 5865 | -10/Subcaves | Discovered new exit (range 10) 8750 | -10/Subcaves | Entered Scraptown 8869 | -7/Scraptown | Visited The Evicted 8891 | -7/Scraptown | Visited Cyclists 8924 | -7/Scraptown | Visited SPCMW 8951 | -7/Scraptown | Visited Comm Corps 9268 | -7/Scraptown | Visited Cave Peace 9336 | -7/Scraptown | Visited Assassins FH 9362 | -7/Scraptown | Visited Fellowship of the Rings 9386 | -7/Scraptown | Visited UFD Registry 9386 | -7/Scraptown | Registered with UFD as "Chainplate" 9435 | -7/Scraptown | Entered Cyclist Reading Room 9505 | -7/Scraptown | Visited Scrap Suit Storage 9542 | -7/Scraptown | Visited Modified Component R&D 9619 | -7/Scraptown | Visited Sword Containment 9662 | -7/Scraptown | Visited Infowarlord's Domain 9673 | -7/Scraptown | Found Exp. Signal Interpreter 9692 | -7/Scraptown | Visited Supply Room 9713 | -7/Scraptown | Visited Supply Room 9731 | -7/Scraptown | Visited Junk Repository 9780 | -7/Scraptown | Delivered Scrap Shield to a Scientist 9891 | -7/Scraptown | Visited A0-MCA Data Center 9909 | -7/Scraptown | Visited Curators Association 10384 | -7/Scraptown | Scanned Subdweller tech in exchange for log data 10388 | -7/Scraptown | Learned location of 1 exit from Factory 10390 | -7/Scraptown | Learned location of Armory (-3) 10409 | -7/Scraptown | Discovered new exit (range 13) 10881 | -7/Scraptown | Met Optimus 10881 | -7/Scraptown | Accepted into 0bPrime 10961 | -7/Scraptown | Discovered new exit (range 5) 10967 | -7/Scraptown | Entered Factory 10967 | -5/Factory | Evolved 10 slots: Propulsion x3, Utility x7 10968 | -5/Factory | Identified exit to Factory 11341 | -5/Factory | Scrapoid reinforcements arrived 11346 | -5/Factory | Fabricated Adv. Recalibrator? 11584 | -5/Factory | Repaired Field Propulsion Drive 11628 | -5/Factory | Scrapoids reinforcements arrived? 11701 | -5/Factory | System corruption reached 10% 11707 | -5/Factory | Lost 5 allies 11736 | -5/Factory | Lost 3 parts (1n2u) 11810 | -5/Factory | Discovered exit to Factory (range 7) 12059 | -5/Factory | Lost 5 parts (3n2u) 12124 | -5/Factory | Lost 3 parts (3n) 12184 | -5/Factory | Scrapoid reinforcements arrived 12489 | -5/Factory | Build established: Commander-Mutant 12727 | -5/Factory | Spotted B-75 Beast 12761 | -5/Factory | Discovered exit to Factory (range 11) 12821 | -5/Factory | Scrapoids reinforcements arrived? 12869 | -5/Factory | Garrison activated, responded to threat 12905 | -5/Factory | P-70 Sage assimilated allied 05F18-D 12928 | -5/Factory | Identified exit to Upper Caves 12945 | -5/Factory | Lost 4 allies 12976 | -5/Factory | Entered Upper Caves 12978 | -5/Upper Caves | UFD Scientist delivered a prototype 13154 | -5/Upper Caves | Found Prototype Protection 13197 | -5/Upper Caves | Build established: Hacker-Sprinter 13286 | -5/Upper Caves | Attracted the attention of an 0b10 checkpoint 13306 | -5/Upper Caves | Learned location of Warlord (-5) 13316 | -5/Upper Caves | Encountered a Warlord checkpoint 13332 | -5/Upper Caves | Discovered new exit (range 10) 13334 | -5/Upper Caves | Identified exit to Upper Caves 13337 | -5/Upper Caves | Entered another Upper Caves area 13362 | -5/Upper Caves | Spotted B-75 Beast 13430 | -5/Upper Caves | Discovered exit to Factory (range 8) 13443 | -5/Upper Caves | Encountered a Warlord checkpoint 13456 | -5/Upper Caves | Discovered new exit (range 9) 13458 | -5/Upper Caves | Identified exit to Warlord 13458 | -5/Upper Caves | Entered Warlord 13466 | -5/Warlord | System corruption cleaned by Quarantine Array 13536 | -5/Warlord | Learned Armory emergency access door positions 13536 | -5/Warlord | Learned 4 Research zone layouts 13536 | -5/Warlord | Learned Armory fabricator intel 13536 | -5/Warlord | Learned Armory repair station intel 13536 | -5/Warlord | Learned Research scanalyzer intel 13541 | -5/Warlord | Received a Watcher feed algorithm from an ecstatic Tinkerer 13593 | -5/Warlord | Warlord's base attacked by MAIN.C 13621 | -5/Warlord | Found Prototype Energy Cannon 13621 | -5/Warlord | Identified Vortex Cannon 13660 | -5/Warlord | Found Prototype Device 13661 | -5/Warlord | Identified Exp. Cloaking Device 13666 | -5/Warlord | Found Prototype Hackware 13667 | -5/Warlord | Identified System Mapper 13701 | -5/Warlord | Found Vortex Cannon 13717 | -5/Warlord | Opened side exit 13722 | -5/Warlord | Discovered new exit (range 9) 13723 | -5/Warlord | Identified exit to Proximity Caves 13723 | -5/Warlord | Entered Proximity Caves 13726 | -4/Proximity Caves | Spotter reported a threat 13733 | -4/Proximity Caves | Learned location of 1 exit from Upper Caves 13751 | -4/Proximity Caves | Spotted B-86 Titan 13843 | -4/Proximity Caves | Discovered exit to Factory (range 10) 13854 | -4/Proximity Caves | Entered Factory 13854 | -4/Factory | Evolved 2 slots: Power x1, Propulsion x1 13855 | -4/Factory | Identified exit to Research 13924 | -4/Factory | Identified exit to Upper Caves 14103 | -4/Factory | Spotted B-86 Titan 14155 | -4/Factory | Noticed UFD Elites at a Recycling Unit 14185 | -4/Factory | Spotted B-86 Titan 14248 | -4/Factory | Scrapoids reinforcements arrived? 14296 | -4/Factory | Lost 5 allies 14354 | -4/Factory | Search patrols dispatched 14453 | -4/Factory | Entered Upper Caves 14454 | -4/Upper Caves | Identified exit to Upper Caves 14456 | -4/Upper Caves | Learned Research trap positions 14560 | -4/Upper Caves | Attracted the attention of an 0b10 outpost 14560 | -4/Upper Caves | Entered another Upper Caves area 14578 | -4/Upper Caves | Discovered exit to Research (range 10) 14580 | -4/Upper Caves | Learned Research security intel 14677 | -4/Upper Caves | Attracted the attention of an 0b10 checkpoint 14887 | -4/Upper Caves | Discovered new exit (range 12) 14890 | -4/Upper Caves | Identified exit to Zhirov 14891 | -4/Upper Caves | Entered Zhirov 14891 | -4/Zhirov | Discovered new exit (range 3) 14896 | -4/Zhirov | Met Zhirov 14901 | -4/Zhirov | Learned location of Quarantine (-3) 14901 | -4/Zhirov | Learned location of Testing (-2) 14901 | -4/Zhirov | Learned location of Command (-1) 14904 | -4/Zhirov | Zhirov requested help retrieving the SGEMP Prototype 14909 | -4/Zhirov | Found Alien Artifact 14909 | -4/Zhirov | Identified Integrated Reactor 14909 | -4/Zhirov | Installed Integrated Reactor, increased core energy generation (+10) 14953 | -4/Zhirov | Found Alien Artifact 14971 | -4/Zhirov | Identified exit to Proximity Caves 14971 | -4/Zhirov | Entered Proximity Caves 14973 | -3/Proximity Caves | Spotter reported a threat 14974 | -3/Proximity Caves | Spotter reported a threat 15026 | -3/Proximity Caves | Spotter reported a threat 15193 | -3/Proximity Caves | Spotter reported a threat 15233 | -3/Proximity Caves | Spotter reported a threat 15244 | -3/Proximity Caves | Discovered exit to Research (range 5) 15247 | -3/Proximity Caves | Entered Research 15247 | -3/Research | Evolved 2 slots: Propulsion x1, Utility x1 15248 | -3/Research | Identified exit to Quarantine 15248 | -3/Research | Identified exit to Armory 15249 | -3/Research | Loaded intel: 82 trap records 15250 | -3/Research | Discovered new exit (range 16) 15251 | -3/Research | Loaded intel: 6 scanalyzer locations 15254 | -3/Research | Identified exit to Research 15289 | -3/Research | Central database locked down 15413 | -3/Research | Entered Quarantine 15589 | -3/Quarantine | Garrison activated, responded to threat 15621 | -3/Quarantine | Found Alien Artifact 15621 | -3/Quarantine | Identified Core Reset Matrix 15621 | -3/Quarantine | Identified Transdimensional Reconstructor 15621 | -3/Quarantine | Used Core Reset Matrix 15625 | -3/Quarantine | Detected hypermatrix surge 15625 | -3/Quarantine | Sensed 10 artifacts in vicinity 15859 | -3/Quarantine | Crushed by falling debris 15859 | -3/Quarantine | System corruption reached 10% 15890 | -3/Quarantine | Lost 3 parts (1n2u) 15912 | -3/Quarantine | Entered Research 15912 | -2/Research | Evolved 2 slots: Utility x2 15940 | -2/Research | Spotted B-90 Cyclops 15973 | -2/Research | Repaired Cld. Impulse Thruster 16014 | -2/Research | Discovered new exit (range 5) 16015 | -2/Research | Identified exit to Access 16206 | -2/Research | Discovered exit to Access (range 15) 16307 | -2/Research | Lost 14 parts (1p6n6u1w) 16377 | -2/Research | Spotted B-90 Cyclops 16424 | -2/Research | Spotted B-90 Cyclops 16471 | -2/Research | Core integrity fell below 50% 16495 | -2/Research | Emitted hypermatrix ping 16500 | -2/Research | Assembled emerged from beneath the floor 16512 | -2/Research | Assembled emerged from beneath the floor 16521 | -2/Research | Lost 8 parts (5n3u) 16558 | -2/Research | Lost 6 allies 16563 | -2/Research | Assembled emerged from beneath the floor 16620 | -2/Research | Assembled emerged from beneath the floor 16670 | -2/Research | Lost 10 allies 16687 | -2/Research | Core integrity fell below 20% 16727 | -2/Research | Discovered exit to Access (range 5) 16735 | -2/Research | Build established: Mutant 16742 | -2/Research | Destroyed by S-43 Plague with Heavy Machine Gun Last Messages --------------- Knocked back. Acquired 5 matter. C-57 Dissector knocked back. C-57 Dissector destroyed. Repair Station disabled. Unknown Hover Unit tumbles out of repair station. Unknown Energy Gun tumbles out of repair station. Unknown Engine tumbles out of repair station. K-01 Serf collects debris. K-01 Serf destroyed. P-80 Master IFF system glitched. P-80 Master resets P-80 Master, system corruption cleaned. C-57 Dissector destroyed. O-32 Director: "IFF HANDSHAKE FAILED. SECURING TERMINAL." Enh. Nova Cannon destroyed. K-01 Serf destroyed. Map ----- +----------------------------------------------------+ | ?????????????? #????##?# | | ?????????????????????#######/### #????#"## | | ?????????????????????????# !# ###????#" | | ?????????????????????????# #! #??????## | | ?????????????????????????# == # #??????## | | ?????????????????????????# == + #???? ## | | ????????????????????######== # #?? ## | | ????????????????????# ######## # ## | | ????????????????????# " / ## | | ????????????????????# ############## # ## | | ????????????????????## ##????????????# #??! ## | | ?????????????????????#A#?????????????# #????#### | | ?????????????????????# #?????????????# #???????# | | ?????????????????????# #?????????????# #???????# | | ?????????????????????# #?????????????#+#??????#"## | | ?????????????????????# #?????"""""?? #??????##?? | | ?????????????????????# #?????""S""" #?????????? | | ?????????????????????# #???? """ #?????????? | | ?????????????????????#%####? #?????????? | | ?????????????????????#% % # #?????????? | | ?????????????????????# # #?????????? | | ?????????????????????# %+ #?????????? | | ??????????????######?# # """ """ #?????????? | | ??????????????# #?# #? """ """ ??????????? | | ??????????????# #?# #??""" """ ??????????? | | ??????????????# #?# @#??? ??? !??????????? | | ??????????????+ #?# #??? ???? ??????????? | | ??????????????# #?# #?????????###??????????? | | ??????????????# #?# #??????????????????????? | | ??????????????# #?# #??????????????????????? | | ??????????????# #?# #??????????????????????? | | ????########### #?# #??????????????????###?? | | ????# # ### %s#????????????????? ## | | ????# + %c##+###???????##### | | ????# # %* ######### | | ????# # = # """ | | ????# # %% % # "R" # < | | ????# """ # """ ! !! # * # | | ???# """ # """ !! # [ = ## | | ???## """ # """ p !! # #? %= | | ????###+#####/# *%=# #?## =* | | ??????# #???# # ! # #???## # | | ??????# #???# # % # #????# # | | ??????# #???# # % ##/############ = | | ??????# #???# ##### A | | ?###??# #???# #???# | | ?# ?# ##### ##### #######/#########+## | | ?#=] ?# #???? ?????????## # | | ?#=] # ############## #?? ????????? # | | ?# # #????????????# #?# #???????? ? | +----------------------------------------------------+ Best States ------------- Heat Dissipation 49 Energy Generation 34 Energy Capacity 355 Matter Stores 300 Matter Capacity 300 Sight Range 16 Robot Scan Range 16 Terrain Scan Density 10 Additional Mass Support 9 Armor Coverage 800 Weapon Shielding 66 Melee Speed Boost 30 Evasion (%) 78 Melee Accuracy 24 Core Analysis 6 Armor Integrity Analysis 40 Recoil Reduction 2 Offensive Hacking 34 Item Schematics ----------------- None Robot Schematics ------------------ None Fabricated ------------ Adv. Recalibrator | x2 | -5/Factory | Preloaded Repaired ---------- Field Propulsion Drive | 10% | -5/Factory Cld. Impulse Thruster | 31% | -2/Research Studied --------- None Alien Tech Used ----------------- Integrated Reactor Core Reset Matrix Achievements -------------- Help And Harvest Loot Taster Nice Directions, Buddy Strength In Numbers Challenges ------------ None Game ------ Seed LegHeartRocket Manual? 0 Play Time 02:57:06 Cumulative 327.6 hours Start 2025.10.29 @ 13:26:10 End 2025.10.29 @ 22:40:38 Sessions 5 Manual Loads 0 Difficulty Rogue Special Mode None Game No. 246 Rogue 246 Adventurer 0 Explorer 0 Win Type - Total 25 Types 12/1/7/2/1/0/0/1/0/1 Lore% 94 Gallery% 88 Achievement% 60 Wizard Run 0 Options --------- Layout 1 ASCII 0 Keyboard 0 Movement Numpad Keybinds 0 Fullscreen 1 Font 24/Proggy Map View 50x35 Zoom Use 0% Tactical HUD 0 Map Filters NONE Filters NONE Steam 1 RUN: 4909174e-2379-4956-ab39-36994bd4dc9e